Workbook

Sheet EingabeMaske
D1: EFH-Rechner, Version 3.1 - 2023 | M1: =D1 -> EFH-Rechner, Version 3.1 - 2023
A4: Vergleichswertberechnung für Einfamilienwohnhäuser mittels Vergleichswertfaktoren des Landesgrundstücksmarktberichtes 2023
A5: gem. § 182 Abs.2 BewG i. V. m. § 183 BewG. | C5: Carport
A7: Bitte Hinweise in den Kommentarfeldern in Spalte "E" beachten. | J7: keine Angabe
A8: Eingabefelder blau | B8: Berechnungsfelder rot
A10: Angaben zum Wertermittlungsobjekt | J10: Angaben zum Richtwertobjekt
A12: Adresse und Ort: | B12: Musterstraße 13, 00000 Musterstadt
A13: Gemeinde / Gemarkung / Landkreis bzw. Stadt: | B13: / / | J13: Gemeinde / Gemarkung / Landkreis bzw. Stadt: | K13: =B13 -> / / | M13: Bobenheim-Roxheim - Roxheim
H14: 1960-01-01 | J14: Marktsegment | M14: =ROUND(VLOOKUP(EingabeMaske!B13,'Vergleichsfaktoren 2023 (2)'!A8:I3024,6,FALSE),0) -> 0
J15: Stichtag: | M15: 2022-01-01
A16: Wertermittlungsstichtag (WST): | D16: 2023-01-01 | H16: =IF(D16>TODAY(),"plausibel ?",IF(D16<H14,"plausibel ?"," ")) ->  | I16: =(YEAR(D16)+1) -> 2024 | J16: Index nach Marktsegment 01.01.2022 (2010 = 100): | M16: ='Indizes 2023 Schätzung 2024'!Y18 -> 
A17: Index nach Marktsegment (2010 = 100) | C17: =IF(D16>TODAY(),"Datum liegt in der Zukunft","") ->  | D17: ='Indizes 2023 Schätzung 2024'!W18 ->  | J17: Vergleichsfaktor (Haustyp freistehend) | M17: =ROUND(VLOOKUP(EingabeMaske!B13,'Vergleichsfaktoren 2023 (2)'!A8:I3024,8,FALSE),0) -> 0
A18: Haustyp | D18: freistehend / DHH / REH | J18: =IF('Vergleichsdaten 2023'!J37=1,"Vergleichsfaktor ("&M17&" €/m² x 1,00)", "Vergeichsfaktor (Haustyp "&D18 &") [("&M17&" €/m² x "&'Vergleichsdaten 2023'!J37&") x "&'Vergleichsdaten 2023'!I38&" / "&'Vergleichsdaten 2023'!B12& "]") -> Vergleichsfaktor (0 €/m² x 1,00) | M18: =M17*'Vergleichsdaten 2023'!J37*'Vergleichsdaten 2023'!I38/'Vergleichsdaten 2023'!B12 -> 
A19: gesamte Grundstücksgröße (gGG): | D19: 500 | H19: =IF(D19<0.0000001,"plausibel ?",IF(D19>3000,"plausibel ?"," ")) ->  | J19: Grundstücksgröße (GG): | M19: ='Vergleichsdaten 2023'!B11 -> 500
A20: Fall 3: Eine Aufteilung in selbstständig verwertbare und baulich nutzbare Teilflächen ist nicht möglich. Die mittlere Tiefe des Grundstücks liegt unter 40 m. Eintrag auf 0 setzen. | D20: 0 | H20: =LOOKUP(EingabeMaske!A20,Bewertungsgrundstück,'Werte 2'!N2:N4) ->  | J20: bebaute Grundstücksteilfläche bei möglicher separater Verwertbarkeit | M20: keine Angabe
A21: Gebäudestandardstufe (GST): gemäß Erklärung, hilfsweise Schätzung | B21: siehe Berechnungshilfe Blatt "GebStandard" | D21: =GebStandard!I25 -> 3 | J21: Gebäudestandardstufe (GST): | M21: ='Vergleichsdaten 2023'!B6 -> 3
A22: Wohnfläche (WF): | D22: 145 | J22: Wohnfläche (WF): | M22: ='Vergleichsdaten 2023'!B3 -> 145
A23: Baujahr (BJ): | D23: 1995 | F23: =IF(D23>=1960,"",IF((D23<1960)*(RND!F34<>"ja"),"Das tatsächliche Baujahr liegt vor 1960. Dies erfordert eine Prüfung, ob durch Modernisierungsmaßnahmen der letzten 10 Jahre das Baujahr fiktiv mindestens auf das Jahr 1960 verjüngt wird (siehe Tabelle RND).",IF((D23<1960)*(RND!F34="ja"),IF(RND!F33<1960,"Das fiktive Baujahr liegt unter 1960. Das Objekt ist im Sachwertverfahren zu bewerten!","")))) ->  | J23: Baujahr (BJ): | M23: =J7 -> keine Angabe
A24: Gesamtnutzungsdauer (GND): | D24: 80 | J24: Gesamtnutzungsdauer (GND): | M24: ='Vergleichsdaten 2023'!B7 -> 80
A25: Restnutzungsdauer (RND): | D25: =ROUND(IF((RND!F34="nein")*(D24-(YEAR(D16)-D23)>= D24*30%),D24-(YEAR(D16)-D23),IF((RND!F34="ja")*(RND!F31>=D24*30%),RND!F31,D24*30%)),0) -> 52 | H25: =IF(OR(D25<=15,D25=D24),"plausibel ?"," ") ->  | J25: Restnutzungsdauer (RND): | M25: ='Vergleichsdaten 2023'!B8 -> 65
A26: Bodenrichtwert (BRW) 01.01.2022 gemäß Liegenschaftskarte/Geodatenserver RP (Auf ältere Stichtage erfolgt programmgesteuert eine Umrechnung mittels eines Indexes.) | D26: 300 | H26: =IF(D26<5,"plausibel ?",IF(D26>1000,"plausibel ?"," ")) ->  | J26: Bodenrichtwert (BRW), maßgeblich ist der BRW zum 01.01.2022 gemäß Liegenschaftskarte/Geodatenserver RP | M26: ='Berechnung und Ergebnis'!F31 -> 0
A27: falls im Bodenrichtwert enthalten: Angabe der Grundstücksgröße des Bodenrichtwerts | D27: 500 | J27: =IF('Vergleichsdaten 2023'!J37=1,"Sachwertfaktor","Sachwertfaktor (Sachwertfaktor bei Haustyp freistehend = "&'Vergleichsdaten 2023'!B12&")") -> Sachwertfaktor | M27: ='Vergleichsdaten 2023'!I38 -> 
A28: Außen- und Nebenanlagen (Zeitwert): mindestens Erschließung | D28: =ROUND('Berechnung und Ergebnis'!F92*'Berechnung und Ergebnis'!F99/'Berechnung und Ergebnis'!F100*EingabeMaske!D22*4%,-2) ->  | H28: =IF(D28<0,"plausibel ?",IF(D28>100000,"plausibel ?"," ")) ->  | J28: Außen- und Nebenanlagen (Zeitwert): | M28: 0
A29: Nebengebäude | C29: Sonstiges (freie Eingabe) | D29: 0 | J29: Nebengebäude | M29: 0
A31: Umrechnungskoeffizient aufgrund der Berücksichtigung von Einliegerwohnungen | J31: Umrechnungskoeffizient aufgrund der Berücksichtigung von Einliegerwohnungen
A32: FELW: | D32: 1 | J32: FELW: | M32: 1
A36: Quelle: Oberer Gutachterausschuss für Grundstückswerte Rheinland-Pfalz gem. Landesgrundstückmarkbericht 2023 | I36: =A36 -> Quelle: Oberer Gutachterausschuss für Grundstückswerte Rheinland-Pfalz gem. Landesgrundstückmarkbericht 2023

Sheet Berechnung und Ergebnis
F1: =EingabeMaske!D1 -> EFH-Rechner, Version 3.1 - 2023
A3: Vergleichswertberechnung für Ein-/Zweifamilienwohnhäuser mittels Vergleichswertfaktoren des Landesgrundstücksmarktberichtes 2023
A4: gem. § 182 Abs.2 BewG i. V. m. § 183 BewG.
A6: Bezeichnung des Wertermittlungsobjekts der Bewertung nach § 183 BewG | B6: =EingabeMaske!B12 -> Musterstraße 13, 00000 Musterstadt
A8: Angaben zum Wertermittlungsobjekt (WO)
A10: Wertermittlungsstichtag (WST): | D10: =EingabeMaske!H16 ->  | F10: =EingabeMaske!D16 -> 2023-01-01
A11: gesamte Grundstücksgröße (gGG): | D11: =EingabeMaske!H19 ->  | F11: =ROUND(EingabeMaske!D19,0) -> 500
A12: bei Aufteilung des Grundstücks in Bewertungsteilflächen: Grundstücksteilfläche (überbaute Fläche zzgl. Umgriffsfläche): | F12: =LOOKUP(EingabeMaske!A20,Bewertungsgrundstück,'Werte 2'!C2:C4) -> 0
A13: Gebäudestandardstufe (GST): | B13: (gemäß Erklärung, hilfsweise Schätzung) | F13: =ROUND(EingabeMaske!D21,2) -> 3
A14: Wohnfläche (WF): | F14: =ROUND(EingabeMaske!D22,0) -> 145
A15: Baujahr (BJ): | F15: =EingabeMaske!D23 -> 1995
A16: Gesamtnutzungsdauer (GND): | B16: (austattungsbezogene GND gemäß der Sachwertrichtlinie) | F16: =ROUND(EingabeMaske!D24,0) -> 80
A17: Restnutzungsdauer (RND): | B17: =IF(F17>ROUND(0.3*F16,0),"","(in Anlehnung an § 185 Abs. 3 BewG: mind. 30% der GND)") ->  | F17: =ROUND(EingabeMaske!D25,0) -> 52
A18: Bodenrichtwert (BRW) 01.01.2022: | B18: (auf abweichende Stichtage erfolgt programmgesteuert eine Umrechnung mittels Indizes) | F18: =ROUND(EingabeMaske!D26,0) -> 300
A19: Grundstücksgröße des Bodenrichtwerts: | F19: =ROUND(EingabeMaske!D27,0) -> 500
A20: Außen und Nebenanlagen (Zeitwert): | B20: (mind. Erschließung; pauschal werden 4% des Gebäudewerts angesetzt) | F20: =EingabeMaske!D28 -> 
A21: Nebengebäude: | F21: =EingabeMaske!D29 -> 0
A22: Bodenwertanteil (BWA) je m² Wohnfläche: | B22: ="[ "&ROUND(IF(F12>0,F12,F11),2)&" m² x "&F18&" €/m² (ohne Größenanpassung) / "&F14&" m² ]" -> [ 500 m² x 300 €/m² (ohne Größenanpassung) / 145 m² ] | F22: =ROUND(IF(F12>0,F18*F12/F14,F18*F11/F14),2) -> 1034.48
A24: Angaben zum Richtwertgrundstück (RWG)
A26: Grundstücksgröße (GG): | F26: =EingabeMaske!M19 -> 500
A27: Gebäudestandardstufe (GST): | F27: =EingabeMaske!M21 -> 3
A28: Wohnfläche (WF): | F28: =EingabeMaske!M22 -> 145
A29: Gesamtnutzungsdauer (GND): | F29: =EingabeMaske!M24 -> 80
A30: Restnutzungsdauer (RND): | F30: =EingabeMaske!M25 -> 65
A31: Bodenwertniveau (BWN): | F31: =ROUND(VLOOKUP(EingabeMaske!B13,'Vergleichsfaktoren 2023 (2)'!A8:I3024,7,FALSE),2) -> 0
A32: Vergleichsfaktor [Richtwert (RW)]: (je m² Wohnfläche) | B32: =IF('Vergleichsdaten 2023'!J37=1,"", "[("&EingabeMaske!M17&" €/m² x "&'Vergleichsdaten 2023'!J37&") x "&'Vergleichsdaten 2023'!I38&" / "&'Vergleichsdaten 2023'!B12&"]") ->  | F32: =EingabeMaske!M18 -> 
A33: Sachwertfaktor des Richtwertgrundstücks: | B33: =IF('Vergleichsdaten 2023'!J37=1,"","(Sachwertfaktor bei Haustyp freistehend = "&'Vergleichsdaten 2023'!B12&" )") ->  | F33: ='Vergleichsdaten 2023'!I38 -> 
A35: Bodenwertanteil (BWA): (je m² Wohnfläche) | F35: =ROUND(F31*'Vergleichsdaten 2023'!B11/'Vergleichsdaten 2023'!B3,2) -> 0
A37: Die vorliegenden Vergleichsfaktoren wurden vom oberen Gutachterausschuss für jede Gemarkung abgeleitet und beziehen sich auf die Merkmale für ein sog. Richtwertgrundstück. Um die Vergleichsfaktoren (im Weiteren als Richtwert bezeichnet) an das konkrete Wertermittlungsobjekt anzupassen, werden die seitens des OGA empfohlenen Anpassungsfaktoren und Umrechnungskoeffizienten zur Schätzung der Zu- und Abschläge angewandt. Diese wurden zum Teil vom OGA selbst abgeleitet bzw. der einschlägigen Literatur entnommen und entsprechend dem Bewertungsgesetz seitens des Landesamt für Steuern angepasst.
A38: Berechnung des Vergleichswertes
A39: 1. Berücksichtigung des Bodenwertanteils des Wertermittlungsobjekts (RW1)
A40: Bodenwertanteil des Wertermittlungsobjekts pro m² Wf
A41: Bodenwert pro m² | F41: =F18 -> 300
A42: Grundstücksgröße | E42: x | F42: =IF(F12>0,F12,F11) -> 500
A43: Anpassung an die Grundstücksgröße | B43: =IF(EingabeMaske!D27=0,"","[ UK WO bei "&F42&" m²: "&ROUND(LOOKUP(EingabeMaske!A20,Bewertungsgrundstück,'Werte 2'!E2:E4),2)&" / UK BRW bei " &F19&" m²: "&ROUND(LOOKUP(EingabeMaske!A20,Bewertungsgrundstück,'Werte 2'!F2:F4),2)&" ]") -> [ UK WO bei 500 m²: 1 / UK BRW bei 500 m²: 1 ] | E43: x | F43: =ROUND(LOOKUP(EingabeMaske!A20,Bewertungsgrundstück,'Werte 2'!G2:G4),2) -> 1
A44: Wohnfläche | E44: / | F44: =EingabeMaske!D22 -> 145
A45: Bodenwertanteil des Wertermittlungsobjekts pro m² Wf (ggf. nach Grundstücksgröße angepasst) | E45: = | F45: =ROUND(F41*F42*F43/F44,2) -> 1034.48
A46: (Die Umrechnungskoeffizienten zur Grundstücksgrößenanpassung wurden anhand der vom OGA zur Verfügung gestellten Formel ermittelt und können geringfügig von der veröffentlichen Tabelle im LGMB 2019 abweichen.)
A47: Ermittlung des Richtwertes mit dem Bodenwertanteil des Wertermittlungsobjekts
A48: Ausgangswert ist hier der Vergleichsfaktor (RW) des RWG. Dessen Bodenwertanteil wird ersetzt durch den Bodenwertanteil des individuellen Wertermittlungsobjektes.
A49: Richtwert pro m² Wf | F49: =F32 -> 
A50: Sachwertfaktor | E50: / | F50: =F33 -> 
A51: Richtwert ohne Marktanpassung | E51: = | F51: =ROUND(F49/F50,2) -> 
A52: Bodenwertanteil des Wertermittlungsobjekts pro m² Wf | E52: + | F52: =F45 -> 1034.48
A53: Bodenwertanteil des Richtwertobjekts | E53: - | F53: =F35 -> 0
A54: Anfangswert (RW0): | E54: = | F54: =ROUND(F51+F52-F53,2) -> 
A57: Sachwertfaktor [SWF(WO)]: | E57: x | F57: ='Vergleichsdaten 2023'!B38 -> 
A59: Zwischenergebnis (RW1): | E59: = | F59: =ROUND(F57*F54,2) -> 
A62: 2. Anpassung an den Gebäudestandard (RW2)
A63: Herauslösen des Gebäudewertanteils aus (RW1) | F63: =F59 -> 
A64: Zwischenergebnis [RW1(BW)]: | B64: ="[ "&F52&" €/m² x "&F57&" ]" ->  | E64: - | F64: =ROUND(F45*F57,2) -> 
A65: Zwischenergebnis [RW1(Geb)]: | E65: = | F65: =ROUND(F59-F64,2) -> 
A67: Anpassung an den Gebäudestandard
A68: UKGST(WO): | B68: ="[ bei Gebäudestandard: "&EingabeMaske!D21&" ]" -> [ bei Gebäudestandard: 3 ] | E68: x | F68: =ROUND('Vergleichsdaten 2023'!C48+'Berechnung und Ergebnis'!F13*'Vergleichsdaten 2023'!C49+'Vergleichsdaten 2023'!C50*'Berechnung und Ergebnis'!F13^2+'Vergleichsdaten 2023'!C51*'Berechnung und Ergebnis'!F13^3+'Vergleichsdaten 2023'!C52*'Berechnung und Ergebnis'!F13^4,3) -> 1.276
A69: UKGST(RWG): | B69: ="[ bei Gebäudestandard: "&F27&" ]" -> [ bei Gebäudestandard: 3 ] | E69: / | F69: =ROUND('Vergleichsdaten 2023'!C48+'Vergleichsdaten 2023'!C49*'Vergleichsdaten 2023'!B6+'Vergleichsdaten 2023'!C50*'Vergleichsdaten 2023'!B6^2+'Vergleichsdaten 2023'!C51*'Vergleichsdaten 2023'!B6^3+'Vergleichsdaten 2023'!C52*'Vergleichsdaten 2023'!B6^4,3) -> 1.276
A70: Zwischenergebnis [RW2(Geb)]: | E70: = | F70: =ROUND(F68/F69*'Berechnung und Ergebnis'!F65,2) -> 
A72: 3. Anpassung an die Restnutzungsdauer
A73: Zwischenergebnis [RW2(Geb)]: | F73: =F70 -> 
A74: Zwischenergebnis [Restwert (WO)]: | B74: [gem. Alterswertminderungsfunktion des OGA] | E74: x | F74: =ROUND(IF(F17/F16=1,1,'Vergleichsdaten 2023'!C70*(F17/F16)^2+F17/F16*'Vergleichsdaten 2023'!C71),4) -> 0.6947
A75: Zwischenergebnis [Restwert (RWG)]: | B75: [gem. Alterswertminderungsfunktion des OGA] | E75: / | F75: =ROUND('Vergleichsdaten 2023'!C70*('Vergleichsdaten 2023'!B8/'Vergleichsdaten 2023'!B7)^2+'Vergleichsdaten 2023'!C71*'Vergleichsdaten 2023'!B8/'Vergleichsdaten 2023'!B7,4) -> 0.8423
A77: Zwischenergebnis [RW3(Geb)]: | E77: = | F77: =ROUND(F70*F74/F75,2) -> 
A80: 4. Anpassung an die Wohnfläche (WF)
A81: Zwischenergebnis [RW3(Geb)]: | F81: =F77 -> 
A82: UKWF(WO): | B82: ="[ bei Wohnfläche: "&F14&" m² ]" -> [ bei Wohnfläche: 145 m² ] | E82: x | F82: =ROUND('Vergleichsdaten 2023'!C80*LN('Berechnung und Ergebnis'!F14)+'Vergleichsdaten 2023'!C81,2) -> 1
A83: UKWF(RWG): | B83: ="[ bei Wohnfläche: "&F28&" m² ]" -> [ bei Wohnfläche: 145 m² ] | E83: / | F83: 1
A85: Zwischenergebnis [RW4(Geb)]: | E85: = | F85: =ROUND(F77*(F82/F83),2) -> 
A88: 5. Zuschlag zur Berücksichtigung von Einliegerwohnungen (ELW) (RW5) (nur am Gebäudewertanteil)
A89: Zwischenergebnis [RW4(Geb)]: | F89: =F85 -> 
A90: FELW: | B90: =IF(F90=1,"",IF(F90=1.05,"[ bei ELW zu max. 1/3 der WF der Hauptwohnung:]",IF(F90=1.07,"[ bei ELW über 1/3 bis zu 2/3 der WF der Hauptwohnung)"))) ->  | E90: x | F90: =ROUND(EingabeMaske!D32,2) -> 1
A92: Zwischenergebnis [RW5(Geb)]: | E92: = | F92: =ROUND(F85*F90,2) -> 
A95: 6. Berücksichtigung der veränderten Wertverhältnisse zwischen dem Richtwertstichtag und dem Wertermittlungsstichtag (RW6)
A96: Zwischenergebnis [RW5(Geb)]: | F96: =F92 -> 
A97: Zwischenergebnis [RW1(BW)]: | E97: + | F97: =F64 -> 
A98: Gesamtwert [RW1(BW) + RW5(Geb)] | E98: = | F98: =ROUND(F96+F97,2) -> 
A99: UK Wertermittlungsstichtag (Index): | E99: x | F99: =EingabeMaske!D17 -> 
A100: UK Richtwertstichtag (Index): | E100: / | F100: =EingabeMaske!M16 -> 
A101: Zwischenergebnis (RW6): | F101: =ROUND(F98*F99/F100,2) -> 
A104: 7. Zuschläge für Außenanlagen (z.B. Erschließung/Befestigung) und Nebengebäude (z.B. Stellplätze, Garagen und Carports) (Zeitwerte)
A105: Zwischenergebnis (RW6): | F105: =F101 -> 
A106: bauliche und nichtbauliche Außenanlagen (€/m² Wohnfläche) | B106: ="[ "&EingabeMaske!D28&" €/m² / "&F14&" m² ]" ->  | E106: + | F106: =ROUND(F20/F14,2) -> 
A107: untergeordnete Nebengebäude (€/m² Wohnfläche) | B107: ="[ "&EingabeMaske!D29&" €/m² / "&F14&" m² ]" -> [ 0 €/m² / 145 m² ] | E107: + | F107: =ROUND(F21/F14,2) -> 0
A109: Zwischenergebnis (RW7): | E109: = | F109: =ROUND(F105+F106+F107,2) -> 
A111: Wohnfäche | E111: x | F111: =F14 -> 145
A113: vorläufiger Vergleichswert (vVW) | E113: = | F113: =ROUND(F109*F111,2) -> 
A115: 8. Berücksichtigung der restlichen Fläche des Grundstücks
A117: =IF(B117=0,"",LOOKUP(EingabeMaske!A20,Bewertungsgrundstück,'Werte 2'!I2:I4)) ->  | B117: =F11-F42 -> 0 | C117: x | D117: =F18 -> 300 | E117: = | F117: =ROUND(B117*D117,2) -> 0
A118: =IF(B117=0,"",LOOKUP(EingabeMaske!A20,Bewertungsgrundstück,'Werte 2'!J2:J4)) ->  | B118: =IF(EingabeMaske!D27=0,"",IF((F118>0.3)*(B117>0),"[ UK WO bei "&B117&" m²: "&ROUND(LOOKUP(EingabeMaske!A20,Bewertungsgrundstück,'Werte 2'!L2:L4),2)&" / UK BRW bei " &F19&" m²: "&ROUND(LOOKUP(EingabeMaske!A20,Bewertungsgrundstück,'Werte 2'!F2:F4),2)&" ]","")) ->  | E118: x | F118: =ROUND(LOOKUP(EingabeMaske!A20,Bewertungsgrundstück,'Werte 2'!M2:M4),2) -> 0
A119: =IF(EingabeMaske!D27=0,"",IF(F118>0.3,"(Die Umrechnungskoeffizienten zur Grundstücksgrößenanpassung wurden anhand der Formel des OGA ermittelt und können geringfügig von der Tabelle des Landesgrundstücksmarktberichts 2017 abweichen.)","")) ->  | E119: = | F119: =ROUND(F117*F118,2) -> 0
E120: + | F120: =F113 -> 
A121: Vergleichswert (VW) | E121: = | F121: =ROUND(F113+F119,2) -> 
A124: =IF((F11*F18+20000)>=F121,"Der vorläufige Vergleichswert ist kleiner/gleich dem Bodenwert (unter der Fiktion unbebaut). Eingaben bitte auf Plausibiltät (insbesondere zur RND) überprüfen!","") -> 
A126: Vergleichswert (gerundet) | D126: =ROUND(F121,-3) -> 
A130: =EingabeMaske!A36 -> Quelle: Oberer Gutachterausschuss für Grundstückswerte Rheinland-Pfalz gem. Landesgrundstückmarkbericht 2023

Sheet Vergleichsdaten 2023 (hidden)
A1: =EingabeMaske!A36 -> Quelle: Oberer Gutachterausschuss für Grundstückswerte Rheinland-Pfalz gem. Landesgrundstückmarkbericht 2023
F2: =EingabeMaske!D1 -> EFH-Rechner, Version 3.1 - 2023
A3: Wohnfläche | B3: 145
A4: Gebäudesachwert ohne Außenanlagen und
A5: Nebengebäude zum Stichtag 1.1.2022 | B5: =B3*EingabeMaske!M17/B12 ->  | D5: =B5*J37 -> 
A6: Gebäudestandard | B6: 3
A7: Gesamtnutzungsdauer (GND) | B7: 80
A8: Restnutzungsdauer (RND) | B8: 65
A9: Zeitwert der Außen- und Nebenanlagen | B9: 0
A10: Zeitwert der Außen- und Nebenanlagen | B10: 0
A11: Grundstücksgröße | B11: 500
A12: Sachwertfaktor (freistehend) | B12: =ROUND(VLOOKUP(EingabeMaske!B13,'Vergleichsfaktoren 2023 (2)'!A8:I3024,9,FALSE),2) -> 0
A14: 1) Die Alterswertminderung des Herstellungswertes des Gebäudes ist bereits im Gebäudesachwert enthalten.
B16: WO | I16: Richtwert
A17: Objektart | B17: EFH / ZFH | I17: =B17 -> EFH / ZFH
A18: Bodenwertniveau | B18: =EingabeMaske!D26 -> 300 | C18: 40 | D18: 70 | E18: 120 | F18: 210 | G18: 210 | H18: 430 | I18: =EingabeMaske!M26 -> 0
A19: vorläufiger Sachwert | B19: ='Berechnung und Ergebnis'!F54*'Berechnung und Ergebnis'!F14 ->  | C19: =$B19 ->  | D19: =$B19 ->  | I19: =EingabeMaske!M17/B12*J37*B3 -> 
A20: Stichtag | B20: 2022-01-01 | C20: 2020-01-01 | D20: 2020-01-01 | E20: 2020-01-01 | F20: 2020-01-01 | G20: 2020-01-01 | H20: 2020-01-01 | I20: =B20 -> 2022-01-01
A21: Stichtag als Zahl | B21: =B20 -> 44562 | C21: 43831 | D21: 43831 | E21: 43831 | F21: 43831 | G21: 43831 | H21: 43831 | I21: 44562
A23: Marktsegment | B23: =EingabeMaske!M14 -> 0 | C23: 1 | D23: 2 | E23: 3 | F23: 4 | G23: 5 | H23: 6 | I23: 0
A24: a | B24: =IF(B$23=C$23,C24,IF(B$23=D$23,D24,IF(B$23=E$23,E24,IF(B$23=F$23,F24,IF(B$23=G$23,G24,IF(B$23=H$23,H24)))))) -> FALSE | C24: 0.034562 | D24: 0.022959 | E24: 0.02494 | F24: 0.03894 | G24: 0.071009 | H24: 0.565057 | I24: FALSE
A25: b | B25: =IF(B$23=C$23,C25,IF(B$23=D$23,D25,IF(B$23=E$23,E25,IF(B$23=F$23,F25,IF(B$23=G$23,G25,IF(B$23=H$23,H25)))))) -> FALSE | C25: 0.138151 | D25: 0.132368 | E25: 0.079852 | F25: 0.066407 | G25: 0.066116 | H25: 0 | I25: FALSE
A26: c | B26: =IF(B$23=C$23,C26,IF(B$23=D$23,D26,IF(B$23=E$23,E26,IF(B$23=F$23,F26,IF(B$23=G$23,G26,IF(B$23=H$23,H26)))))) -> FALSE | C26: -0.207809 | D26: -0.234342 | E26: -0.243713 | F26: -0.226169 | G26: -0.224196 | H26: -0.291045 | I26: FALSE
A27: d | B27: =IF(B$23=C$23,C27,IF(B$23=D$23,D27,IF(B$23=E$23,E27,IF(B$23=F$23,F27,IF(B$23=G$23,G27,IF(B$23=H$23,H27)))))) -> FALSE | C27: =1.20034*10^-4 -> 0.000120034 | D27: =1.38837*10^-4 -> 0.000138837 | E27: =1.46775*10^-4 -> 0.000146775 | F27: =1.34541*10^-4 -> 0.000134541 | G27: =1.21434*10^-4 -> 0.000121434 | H27: =1.05017*10^-4 -> 0.000105017 | I27: FALSE
A28: e | B28: =IF(B$23=C$23,C28,IF(B$23=D$23,D28,IF(B$23=E$23,E28,IF(B$23=F$23,F28,IF(B$23=G$23,G28,IF(B$23=H$23,H28)))))) -> FALSE | C28: 2.718281828 | D28: 2.718281828 | E28: 2.718281828 | F28: 2.718281828 | G28: 2.718281828 | H28: 2.718281828 | I28: FALSE
A30: Sachwertfaktor | B30: =B24*B18^B25*B19^B26*B28^(B27*B21) ->  | C30: =C24*C18^C25*C19^C26*C28^(C27*C21) ->  | D30: =D24*D18^D25*D19^D26*D28^(D27*D21) ->  | I30: =I24*I18^I25*I19^I26*I28^(I27*I21) -> 
A31: gerundet auf 2 Stellen | B31: =ROUND(B30,2) -> 
A33: Doppelhaushäfte / Reihenendhaus | B33: =ROUND((10.7016*B18^0.1647*B19^-0.2522)-(9.8596*B18^0.1844*B19^-0.2537),2) ->  | C33: 0.94 | H33: Doppelhaushäfte / Reihenendhaus | I33: =ROUND((10.7016*I18^0.1647*I19^-0.2522)-(9.8596*I18^0.1844*I19^-0.2537),2) ->  | J33: 0.94 | K33: (Faktor DHH)
B34: =B31+B33 ->  | I34: =I31+I33 -> 
A35: Reihenmittelhaus | B35: =ROUND((16.6179*B18^0.284*B19^-0.334)-(9.8596*B18^0.1844*B19^-0.2537),2) ->  | C35: 0.88 | H35: Reihenmittelhaus | I35: =ROUND((16.6179*I18^0.284*I19^-0.334)-(9.8596*I18^0.1844*I19^-0.2537),2) ->  | J35: 0.88 | K35: (Faktor RMH)
B36: =B31+B35 ->  | I36: =I31+I35 -> 
A37: Haustyp | B37: =IF(EingabeMaske!D18='Vergleichsdaten 2023'!A33,B33,IF(EingabeMaske!D18='Vergleichsdaten 2023'!A35,B35,0)) -> 0 | C37: =ROUND(IF(EingabeMaske!D18='Vergleichsdaten 2023'!A33,'Vergleichsdaten 2023'!C33,IF(EingabeMaske!D18='Vergleichsdaten 2023'!A35,'Vergleichsdaten 2023'!C35,1)),2) -> 1 | H37: Haustyp | I37: =IF(EingabeMaske!D18='Vergleichsdaten 2023'!H33,I33,IF(EingabeMaske!D18='Vergleichsdaten 2023'!H35,I35,0)) -> 0 | J37: =ROUND(IF(EingabeMaske!D18='Vergleichsdaten 2023'!H33,'Vergleichsdaten 2023'!J33,IF(EingabeMaske!D18='Vergleichsdaten 2023'!H35,'Vergleichsdaten 2023'!J35,1)),2) -> 1
B38: =B37+B31 ->  | I38: =I37+I31 ->  | J38: SWF bei | K38: =EingabeMaske!D18 -> freistehend / DHH / REH
A42: Umrechnungskoeffizienten Gebäudestandard (UKGS)
B44: GS-Stufe | C44: 1 | D44: 2 | E44: 3 | F44: 4 | G44: 5
B45: UKGS | C45: 1 | D45: 1.111 | E45: 1.276 | F45: 1.539 | G45: 1.925
B46: Kontrolle | C46: =$C$48+$C$49*C44+$C$50*C44^2+$C$51*C44^3+$C$52*C44^4 -> 1 | D46: =$C$48+$C$49*D44+$C$50*D44^2+$C$51*D44^3+$C$52*D44^4 -> 1.11099996 | E46: =$C$48+$C$49*E44+$C$50*E44^2+$C$51*E44^3+$C$52*E44^4 -> 1.27599976 | F46: =$C$48+$C$49*F44+$C$50*F44^2+$C$51*F44^3+$C$52*F44^4 -> 1.5389992 | G46: =$C$48+$C$49*G44+$C$50*G44^2+$C$51*G44^3+$C$52*G44^4 -> 1.924998
A48: UKGS=a+b*GS+c*GS²+d*GS³+e*GS4 | B48: a= | C48: 0.88
B49: b= | C49: 0.15025
B50: c= | C50: -0.04470833
B51: d= | C51: 0.01525
B52: e= | C52: -0.00079167
C55: 3 | D55: =EingabeMaske!D21 -> 3
C58: =C48+C49*C55+C50*C55^2+C51*C55^3+C52*C55^4 -> 1.27599976 | D58: =C48+C49*C55+C50*C55^2+C51*C55^3+C52*C55^4 -> 1.27599976
A65: Alterswertminderung
A67: RW = a*RND(%)² + b*RND(%)
B70: a= | C70: -0.1977725722
B71: b= | C71: 1.197312161
A76: Umrechnungskoeffizienten Wohnfläche
E77: WF | F77: UKWF
A78: UKWF = a*ln(WF) + b | E78: 50 | F78: =$C$80*LN(E78)+$C$81 -> 1.136303923
E79: 60 | F79: 1.112954742
B80: a= | C80: -0.1280659368 | E80: 70 | F80: 1.093213291
B81: b= | C81: 1.637300814 | E81: 80 | F81: 1.076112468
E82: 90 | F82: 1.061028473
E83: 100 | F83: 1.04753538
E84: 110 | F84: 1.035329392
E85: 120 | F85: 1.024186199
E86: 130 | F86: 1.013935455
E87: 140 | F87: 1.004444748
E88: 145 | F88: 0.999950745
E89: 150 | F89: 0.995609111
E90: 160 | F90: 0.9873439248
E91: 170 | F91: 0.9795799759
E92: 180 | F92: 0.97225993
E93: 190 | F93: 0.9653357607
E94: 200 | F94: 0.9587668369
E95: 210 | F95: 0.9525184788
E96: 220 | F96: 0.9465608494
E97: 230 | F97: 0.9408680928
E98: 240 | F98: 0.9354176559
E99: 250 | F99: 0.9301897489
E100: 260 | F100: 0.9251669116
E101: 270 | F101: 0.9203336611
E102: 280 | F102: 0.9156762047
E103: 290 | F103: 0.9111822019
E104: 300 | F104: 0.906840568
A108: Marktanpassung SMK
A110: kSMK=a*BW+b
B112: a= | C112: -0.0005166036 | E112: BW | F112: kSMK
B113: b= | C113: 1.008083556 | E113: 20 | F113: 1
E114: 50 | F114: 0.98
E115: 100 | F115: 0.96
E116: 150 | F116: 0.93
E117: 200 | F117: 0.9
E118: 250 | F118: 0.88
E119: 300 | F119: 0.85
E120: 350 | F120: 0.83
E121: 400 | F121: 0.8
E122: 450 | F122: 0.78
E123: 500 | F123: 0.75
E124: 550 | F124: 0.72
E125: 600 | F125: 0.7

Sheet Vergleichsfaktoren 2023 (2) (hidden)
B1: Vergleichsfaktoren (VF) für mit freistehenden Einfamilienwohnhäusern bebaute Grundstücke
D2: Stichtag | E2: 2020-01-01
B3: Modell s. LGMB 2021, Kap. 3.6.1.1 - © Oberer Gutachterausschuss für Grundstückswerte Rheinland-Pfalz
B4: Kurzbeschreibung des Richtwertgrundstücks: Größe 500 m², mittlerer Standard, freistehend KG+EG+ausgeb. DG, Wohnfäche 145 m², Alter 15 Jahre
B5: Hinweis: Sollte eine Gemarkung nicht nachgewiesen sein, kann eine vergleichbare Gemarkung desselben Marktsegments herangezogen werden.
A6: Ergänzung LfSt
A7: Gemeinde / Gemarkung / Landkreis bzw. Stadt | B7: Nr. | C7: Gemarkung | D7: Gemeinde | E7: Landkreis/kreisfreie Stadt | F7: Markt-segment Nr. | G7: BWN €/m² Grdst.fl. | H7: RW €/m² Wohnfl. | I7: SWF
A8: =TRIM(D8)&" / "&TRIM(C8)&" / "&TRIM(E8) -> 0 / 0 / 0 | B8: 0 | C8: 0 | D8: 0 | E8: 0 | F8: 0 | G8: 0 | I8: 0
A9: =TRIM(D9)&" / "&TRIM(C9)&" / "&TRIM(E9) -> / /
A10: / /
A11: / /
A12: / /
A13: / /
A14: / /
A15: / /
A16: / /
A17: / /
A18: / /
A19: / /
A20: / /
A21: / /
A22: / /
A23: / /
A24: / /
A25: / /
A26: / /
A27: / /
A28: / /
A29: / /
A30: / /
A31: / /
A32: / /
A33: / /
A34: / /
A35: / /
A36: / /
A37: / /
A38: / /
A39: / /
A40: / /
A41: / /
A42: / /
A43: / /
A44: / /
A45: / /
A46: / /
A47: / /
A48: / /
A49: / /
A50: / /
A51: / /
A52: / /
A53: / /
A54: / /
A55: / /
A56: / /
A57: / /
A58: / /
A59: / /
A60: / /
A61: / /
A62: / /
A63: / /
A64: / /
A65: / /
A66: / /
A67: / /
A68: / /
A69: / /
A70: / /
A71: / /
A72: / /
A73: =TRIM(D73)&" / "&TRIM(C73)&" / "&TRIM(E73) -> / /
A74: / /
A75: / /
A76: / /
A77: / /
A78: / /
A79: / /
A80: / /
A81: / /
A82: / /
A83: / /
A84: / /
A85: / /
A86: / /
A87: / /
A88: / /
A89: / /
A90: / /
A91: / /
A92: / /
A93: / /
A94: / /
A95: / /
A96: / /
A97: / /
A98: / /
A99: / /
A100: / /
A101: / /
A102: / /
A103: / /
A104: / /
A105: / /
A106: / /
A107: / /
A108: / /
A109: / /
A110: / /
A111: / /
A112: / /
A113: / /
A114: / /
A115: / /
A116: / /
A117: / /
A118: / /
A119: / /
A120: / /
A121: / /
A122: / /
A123: / /
A124: / /
A125: / /
A126: / /
A127: / /
A128: / /
A129: / /
A130: / /
A131: / /
A132: / /
A133: / /
A134: / /
A135: / /
A136: / /
A137: =TRIM(D137)&" / "&TRIM(C137)&" / "&TRIM(E137) -> / /
A138: / /
A139: / /
A140: / /
A141: / /
A142: / /
A143: / /
A144: / /
A145: / /
A146: / /
A147: / /
A148: / /
A149: / /
A150: / /
A151: / /
A152: / /
A153: / /
A154: / /
A155: / /
A156: / /
A157: / /
A158: / /
A159: / /
A160: / /
A161: / /
A162: / /
A163: / /
A164: / /
A165: / /
A166: / /
A167: / /
A168: / /
A169: / /
A170: / /
A171: / /
A172: / /
A173: / /
A174: / /
A175: / /
A176: / /
A177: / /
A178: / /
A179: / /
A180: / /
A181: / /
A182: / /
A183: / /
A184: / /
A185: / /
A186: / /
A187: / /
A188: / /
A189: / /
A190: / /
A191: / /
A192: / /
A193: / /
A194: / /
A195: / /
A196: / /
A197: / /
A198: / /
A199: / /
A200: / /
... 2824 more rows

Sheet Indizes 2022 Schätzung 2023 (hidden)
A1: Quelle: Oberer Gutachterausschuss für Grundstückswerte Rheinland-Pfalz gem. Landesgrundstückmarkbericht 2023
A2: =EingabeMaske!D1 -> EFH-Rechner, Version 3.1 - 2023
B8: Indizes jeweils zum 1.1. des Jahres, für Rechner des LfSt inkl. Schätzung 1.1.2023 | S8: Marktsegment | T8: Stichtag | V8: =DATE(T10,1,1) -> 2023-01-01 | W8: =DATE(U10,1,1) -> 2024-01-01 | X8: Stichtag Richtwert
B9: Preisindex für bebaute Ein- und Zweifamilienhausgrundstücke | P9: Schätzung | Q9: Schätzung | S9: =EingabeMaske!M14 -> 0 | T9: =EingabeMaske!D16 -> 2023-01-01 | V9: Tage | W9: Tage | X9: 2022-01-01
B10: Markt- segment | C10: 2010 | D10: 2011 | E10: 2012 | F10: 2013 | G10: 2014 | H10: 2015 | I10: 2016 | J10: 2017 | K10: 2018 | L10: 2019 | M10: 2020 | N10: 2021 | O10: 2022 | P10: 2023 | Q10: 2024 | T10: =YEAR(T9) -> 2023 | U10: =T10+1 -> 2024 | V10: =_xlfn.DAYS(T9,V8) -> 0 | W10: =_xlfn.DAYS(W8,V8) -> 365 | X10: =YEAR(X9) -> 2022
B11: 1 | C11: 100 | D11: 99 | E11: 100 | F11: 100 | G11: 100 | H11: 101 | I11: 105 | J11: 109 | K11: 116 | L11: 125 | M11: 138 | N11: 156 | O11: 173 | P11: 190 | Q11: =P11 -> 190 | S11: 1 | T11: =HLOOKUP(T$10,$C$10:$Q$17,2) -> 190 | U11: =HLOOKUP(U$10,$C$10:$Q$17,2) -> 190 | V11: =T11+(U11-T11)*$V$10/$W$10 -> 190 | X11: =HLOOKUP($X$10,$E$10:$Q$17,2) -> 173
B12: 2 | C12: 100 | D12: 101 | E12: 103 | F12: 104 | G12: 105 | H12: 108 | I12: 112 | J12: 117 | K12: 123 | L12: 132 | M12: 143 | N12: 159 | O12: 175 | P12: 190 | Q12: =P12 -> 190 | S12: 2 | T12: =HLOOKUP(T$10,$C$10:$Q$17,3) -> 190 | U12: =HLOOKUP(U$10,$C$10:$Q$17,3) -> 190 | V12: =T12+(U12-T12)*$V$10/$W$10 -> 190 | X12: =HLOOKUP($X$10,$E$10:$Q$17,3) -> 175
B13: 3 | C13: 100 | D13: 102 | E13: 104 | F13: 107 | G13: 108 | H13: 111 | I13: 114 | J13: 121 | K13: 129 | L13: 140 | M13: 155 | N13: 176 | O13: 195 | P13: 212 | Q13: 212 | S13: 3 | T13: =HLOOKUP(T$10,$C$10:$Q$17,4) -> 212 | U13: =HLOOKUP(U$10,$C$10:$Q$17,4) -> 212 | V13: 212 | X13: =HLOOKUP($X$10,$E$10:$Q$17,4) -> 195
B14: 4 | C14: 100 | D14: 102 | E14: 105 | F14: 107 | G14: 111 | H14: 115 | I14: 121 | J14: 130 | K14: 143 | L14: 156 | M14: 171 | N14: 190 | O14: 210 | P14: 226 | Q14: 226 | S14: 4 | T14: =HLOOKUP(T$10,$C$10:$Q$17,5) -> 226 | U14: =HLOOKUP(U$10,$C$10:$Q$17,5) -> 226 | V14: =T14+(U14-T14)*$V$10/$W$10 -> 226 | X14: =HLOOKUP($X$10,$E$10:$Q$17,5) -> 210
B15: 5 | C15: 100 | D15: 104 | E15: 108 | F15: 114 | G15: 119 | H15: 125 | I15: 133 | J15: 143 | K15: 156 | L15: 170 | M15: 189 | N15: 208 | O15: 225 | P15: 237 | Q15: 237 | S15: 5 | T15: =HLOOKUP(T$10,$C$10:$Q$17,6) -> 237 | U15: =HLOOKUP(U$10,$C$10:$Q$17,6) -> 237 | V15: 237 | X15: =HLOOKUP($X$10,$E$10:$Q$17,6) -> 225
B16: 6 | C16: 100 | D16: 101 | E16: 106 | F16: 113 | G16: 120 | H16: 127 | I16: 135 | J16: 148 | K16: 160 | L16: 174 | M16: 186 | N16: 205 | O16: 222 | P16: 240 | Q16: 240 | S16: 6 | T16: =HLOOKUP(T$10,$C$10:$Q$17,7) -> 240 | U16: =HLOOKUP(U$10,$C$10:$Q$17,7) -> 240 | V16: 240 | X16: =HLOOKUP($X$10,$E$10:$Q$17,7) -> 222
B17: ø RLP | C17: 100 | D17: 101 | E17: 104 | F17: 106 | G17: 108 | H17: 109 | I17: 112 | J17: 118 | K17: 125 | L17: 134 | M17: 147 | N17: 163 | O17: 180 | P17: 192 | Q17: 192 | S17: Ø RLP | T17: =HLOOKUP(T$10,$C$10:$Q$17,8) -> 192 | U17: =HLOOKUP(U$10,$C$10:$Q$17,8) -> 192 | V17: 192 | X17: =HLOOKUP($X$10,$E$10:$Q$17,8) -> 180
S18: =S9 -> 0 | U18: = | V18: =ROUND(VLOOKUP(S9,S11:V17,4),1) ->  | X18: =VLOOKUP(S9,S11:X17,6) -> 
B19: © Oberer Gutachterausschuss für Grundstückswerte Rheinland-Pfalz, Stand März 2023
B20: vgl. LGMB 2023, Abschnitt 4.6.1 und 4.6.2
C22: Die derzeit unklar Situation am Immobilienmarkt erschwert eine Prognose zum 01.01.2023.
C23: Immer mehr Meldungen und Anzeichen sind zu erkennen, dass der Markt im Umbruch ist.
C24: Daher ist es in diesem Ausnahmenfall angebracht, von der vereinbarten Rechenformel *1)
C25: nach Dr. Gante (Sprengnetter) abzuweichen.
C26: Die Prognose wurder daher um die Hälfte des prognostizierten Wachstums,
C27: sachverständig durch Herr Christian Paulik verringert.
C28: Die Schätzung für 01.01.2023 beeinflußt durch die Glättung den Wert zum aktuellen Stichtag 01.01.2022.
C29: Die Schätzung findet des Weiteren Anwendung im EFH-/WE-Rechner.
B32: *1)
C33: Statistisches Verfahren der Glättung | K33: Stand des Verfahrens 30.7.2019
C34: A Prognose: durch Extrapolation über 5 Einzel-Preissteigerungsraten (d.h. aus 6 Jahren)
C35: Das Verfahren "Extrapolation mittels Preissteigerungsraten x letztem Wert" wurde 2019
C36: in Fulda von Dr. Gante (Fa. Sprengnetter) vorgestellt.
C37: Es ist eines von vielen in Frage kommenden Verfahren, es erscheint für
C38: Immobilienpreiszeitreihen besonders geeignet.
C39: Beispiel | F39: Preissteigerungsraten | J39: Extrapolation
C40: Klasse 1 | D40: 2015 / 2014 | E40: 2016 / 2015 | F40: 2017 / 2016 | G40: 2018 / 2017 | H40: 2019 / 2018 | I40: 2020/2019 | J40: I 2019 | K40: I 2020
D41: 1.055 | E41: 0.9952606635 | F41: 1.131746032 | G41: 1.10799439 | H41: 1.025316456 | I41: 1,059 *) | J41: x 168,8 | K41: = 178,7 **)
C42: *) Prognose der Preissteigerungsrate
C43: = (letzte + Mittelwert letzte 3 Jahre + Mittelwert letzte 5 Jahre) / 3
C44: = | D44: (1,025 +(1,025+1,108+1,132)/3 +( 1,025+1,108+1,132+0,995+1,055)/5) / 3 = 1,059
C46: **) Prognose des künftigen Index 2020
C47: = letzter (ungeglätteter) Index 2019 x prognost. Preissteigerungsrate 2020/2019
F48: = | G48: 168.8 x 1,059 = 178,7

Sheet Indizes 2023 Schätzung 2024 (hidden)
A1: Quelle: Oberer Gutachterausschuss für Grundstückswerte Rheinland-Pfalz gem. Landesgrundstückmarkbericht 2021
A2: =EingabeMaske!D1 -> EFH-Rechner, Version 3.1 - 2023
B8: Indizes jeweils zum 1.1. des Jahres, für Rechner des LfSt inkl. Schätzung 1.1.2024 | T8: Marktsegment | U8: Stichtag | W8: =DATE(U10,1,1) -> 2023-01-01 | X8: =DATE(V10,1,1) -> 2024-01-01 | Y8: Stichtag Richtwert
B9: Preisindex für bebaute Ein- und Zweifamilienhausgrundstücke | Q9: Schätzung | R9: Schätzung | T9: =EingabeMaske!M14 -> 0 | U9: =EingabeMaske!D16 -> 2023-01-01 | W9: Tage | X9: Tage | Y9: 2022-01-01
B10: Markt- segment | C10: 2010 | D10: 2011 | E10: 2012 | F10: 2013 | G10: 2014 | H10: 2015 | I10: 2016 | J10: 2017 | K10: 2018 | L10: 2019 | M10: 2020 | N10: 2021 | O10: 2022 | P10: 2023 | Q10: 2024 | R10: 2025 | U10: =YEAR(U9) -> 2023 | V10: =U10+1 -> 2024 | W10: =_xlfn.DAYS(U9,W8) -> 0 | X10: =_xlfn.DAYS(X8,W8) -> 365 | Y10: =YEAR(Y9) -> 2022
B11: 1 | C11: 100 | D11: 99 | E11: 100 | F11: 100 | G11: 100 | H11: 101 | I11: 105 | J11: 109 | K11: 116 | L11: 125 | M11: 138 | N11: 156 | O11: 184 | P11: 190 | Q11: 171 | R11: 171 | T11: 1 | U11: =HLOOKUP(U$10,$C$10:$R$17,2) -> 190 | V11: =HLOOKUP(V$10,$C$10:$R$17,2) -> 171 | W11: =U11+(V11-U11)*$W$10/$X$10 -> 190 | Y11: =HLOOKUP($Y$10,$E$10:$Q$17,2) -> 184
B12: 2 | C12: 100 | D12: 101 | E12: 103 | F12: 104 | G12: 105 | H12: 108 | I12: 112 | J12: 117 | K12: 123 | L12: 132 | M12: 143 | N12: 160 | O12: 183 | P12: 194 | Q12: 174 | R12: 174 | T12: 2 | U12: =HLOOKUP(U$10,$C$10:$R$17,3) -> 194 | V12: =HLOOKUP(V$10,$C$10:$R$17,3) -> 174 | W12: =U12+(V12-U12)*$W$10/$X$10 -> 194 | Y12: =HLOOKUP($Y$10,$E$10:$Q$17,3) -> 183
B13: 3 | C13: 100 | D13: 102 | E13: 104 | F13: 107 | G13: 108 | H13: 111 | I13: 114 | J13: 121 | K13: 129 | L13: 140 | M13: 155 | N13: 176 | O13: 200 | P13: 192 | Q13: 173 | R13: 173 | T13: 3 | U13: =HLOOKUP(U$10,$C$10:$R$17,4) -> 192 | V13: =HLOOKUP(V$10,$C$10:$R$17,4) -> 173 | W13: 192 | Y13: =HLOOKUP($Y$10,$E$10:$Q$17,4) -> 200
B14: 4 | C14: 100 | D14: 102 | E14: 105 | F14: 107 | G14: 111 | H14: 115 | I14: 121 | J14: 130 | K14: 143 | L14: 156 | M14: 171 | N14: 192 | O14: 223 | P14: 212 | Q14: 191 | R14: 191 | T14: 4 | U14: =HLOOKUP(U$10,$C$10:$R$17,5) -> 212 | V14: =HLOOKUP(V$10,$C$10:$R$17,5) -> 191 | W14: =U14+(V14-U14)*$W$10/$X$10 -> 212 | Y14: =HLOOKUP($Y$10,$E$10:$Q$17,5) -> 223
B15: 5 | C15: 100 | D15: 104 | E15: 108 | F15: 114 | G15: 119 | H15: 125 | I15: 133 | J15: 143 | K15: 156 | L15: 170 | M15: 189 | N15: 210 | O15: 235 | P15: 222 | Q15: 199 | R15: 199 | T15: 5 | U15: =HLOOKUP(U$10,$C$10:$R$17,6) -> 222 | V15: =HLOOKUP(V$10,$C$10:$R$17,6) -> 199 | W15: 222 | Y15: =HLOOKUP($Y$10,$E$10:$Q$17,6) -> 235
B16: 6 | C16: 100 | D16: 101 | E16: 106 | F16: 113 | G16: 120 | H16: 127 | I16: 135 | J16: 148 | K16: 160 | L16: 174 | M16: 186 | N16: 205 | O16: 231 | P16: 223 | Q16: 201 | R16: 201 | T16: 6 | U16: =HLOOKUP(U$10,$C$10:$R$17,7) -> 223 | V16: =HLOOKUP(V$10,$C$10:$R$17,7) -> 201 | W16: 223 | Y16: =HLOOKUP($Y$10,$E$10:$Q$17,7) -> 231
B17: ø RLP | C17: 100 | D17: 101 | E17: 104 | F17: 106 | G17: 108 | H17: 109 | I17: 112 | J17: 118 | K17: 125 | L17: 134 | M17: 147 | N17: 165 | O17: 187 | P17: 187 | Q17: 168 | R17: 168 | T17: Ø RLP | U17: =HLOOKUP(U$10,$C$10:$R$17,8) -> 187 | V17: =HLOOKUP(V$10,$C$10:$R$17,8) -> 168 | W17: 187 | Y17: =HLOOKUP($Y$10,$E$10:$Q$17,8) -> 187
T18: =T9 -> 0 | V18: = | W18: =ROUND(VLOOKUP(T9,T11:W17,4),1) ->  | Y18: =VLOOKUP(T9,T11:Y17,6) -> 
B19: © Oberer Gutachterausschuss für Grundstückswerte Rheinland-Pfalz, Stand Juli 2023
B20: vgl. LGMB 2023, Abschnitt 4.6.1 und 4.6.2

Sheet GebStandard
B1: Gebäudestandards und Wägungsanteile für Ein- und Zweifamilienhäuser, Stufen 1-5 gemäß Anlage 4 der ImmoWertV
B4: Wägungsan- teile (∑100 %) | C4: Stufe 1 | E4: Stufe 2 | G4: Stufe 3 | I4: Stufe 4 | K4: Stufe 5
B5: Außenwände | C5: Holzfachwerk, Ziegelmauerwerk; Fugenglattstrich, Putz, Verkleidung mit Faserzementplatten, Bitumenschindeln oder einfachen Kunststoffplatten; kein oder deutlich nicht zeitgemäßer Wärmeschutz (vor ca. 1980) | E5: ein-/zweischaliges Mauerwerk, z. B. Gitterziegel oder Hohlblocksteine; verputzt und gestrichen oder Holzverkleidung; nicht zeitgemäßer Wärmeschutz (vor ca. 1995) | G5: ein-/zweischaliges Mauerwerk, z. B. aus Leichtziegeln, Kalksandsteinen, Gasbetonsteinen; Edelputz; Wärmedämmverbundsystem oder Wärmedämmputz (nach ca. 1995) | I5: Verblendmauerwerk, zweischalig, hinterlüftet, Vorhangfassade (z. B. Naturschiefer); Wärmedämmung (nach ca. 2005) | K5: aufwendig gestaltete Fassaden mit konstruktiver Gliederung (Säulenstell-ungen, Erker etc.), Sichtbeton-Fertig-teile, Natursteinfassade, Elemente aus Kupfer-/Eloxalblech, mehrgeschoss. Glasfassaden; hochwertigste Dämmung | N5: =IF(N6=TRUE,1,0) -> 0 | O5: =IF(O6=TRUE,1,0) -> 0 | P5: 1 | Q5: 0 | R5: 0
B6: 23% | C6: =ROUND($B6/$S6*N5,4) -> 0 | E6: =ROUND($B6/$S6*O5,4) -> 0 | G6: =ROUND($B6/$S6*P5,4) -> 0.23 | I6: =ROUND($B6/$S6*Q5,4) -> 0 | K6: =ROUND($B6/$S6*R5,4) -> 0 | N6: FALSE | O6: FALSE | P6: TRUE | Q6: FALSE | R6: FALSE | S6: =COUNTIF(N6:R6,TRUE) -> 1
B7: Dach | C7: Dachpappe, Faserzementplatten/ Wellplatten; keine bis geringe Dachdämmung | E7: einfache Betondachsteine oder Tondachziegel, Bitumenschindeln; nicht zeitgemäße Dachdämmung (vor ca. 1995) | G7: Faserzement-Schindeln, beschichtete Betondachsteine und Tondachziegel, Folienabdichtung; Dachdämmung (nach ca. 1995) | I7: glasierte Tondachziegel, Flachdach- ausbildung tlw. als Dachterrassen; Konstruktion in Brettschichtholz, schweres Massivflachdach; besondere Dachformen, z. B. Mansarden-, Walmdach; Aufsparrendämmung, überdurchschn. Dämmung (nach ca. 2005) | K7: hochwertige Eindeckung z. B. aus Schiefer oder Kupfer, Dachbegrünung, befahrbares Flachdach; stark überdurchschnittliche Dämmung | N7: =IF(N8=TRUE,1,0) -> 0 | O7: =IF(O8=TRUE,1,0) -> 0 | P7: 1 | Q7: 0 | R7: 0
B8: 15% | C8: =ROUND($B8/$S8*N7,4) -> 0 | E8: =ROUND($B8/$S8*O7,4) -> 0 | G8: =ROUND($B8/$S8*P7,4) -> 0.15 | I8: =ROUND($B8/$S8*Q7,4) -> 0 | K8: =ROUND($B8/$S8*R7,4) -> 0 | N8: FALSE | O8: FALSE | P8: TRUE | Q8: FALSE | R8: FALSE | S8: =COUNTIF(N8:R8,TRUE) -> 1
B9: Fenster und Außentüren | C9: Einfachverglasung; einfache Holztüren | E9: Zweifachverglasung (vor ca. 1995); Haustür mit nicht zeitgemäßem Wärmeschutz (vor ca. 1995) | G9: Zweifachverglasung (nach ca. 1995), Rollläden (manuell); Haustür mit zeitgemäßem Wärmeschutz (nach ca. 1995) | I9: Dreifachverglasung, Sonnenschutz- glas, aufwendigere Rahmen, Rollläden (elektr.); höherwertige Türanlagen z. B. mit Seitenteil, besonderer Einbruchschutz | K9: große feststehende Fensterflächen, Spezialverglasung (Schall- und Sonnenschutz); Außentüren in hochwertigen Materialien | N9: =IF(N10=TRUE,1,0) -> 0 | O9: =IF(O10=TRUE,1,0) -> 0 | P9: 1 | Q9: 0 | R9: 0
B10: 11% | C10: =ROUND($B10/$S10*N9,4) -> 0 | E10: =ROUND($B10/$S10*O9,4) -> 0 | G10: =ROUND($B10/$S10*P9,4) -> 0.11 | I10: =ROUND($B10/$S10*Q9,4) -> 0 | K10: =ROUND($B10/$S10*R9,4) -> 0 | N10: FALSE | O10: FALSE | P10: TRUE | Q10: FALSE | R10: FALSE | S10: =COUNTIF(N10:R10,TRUE) -> 1
B11: Innenwände und -türen | C11: Fachwerkwände, einfache Putze/Lehmputze, einfache Kalkanstriche; Füllungstüren, gestrichen, mit einfachen Beschlägen ohne Dichtungen | E11: massive tragende Innenwände, nicht tragende Wände in Leichtbauweise (z. B. Holzständerwände mit Gipskarton), Gipsdielen; leichte Türen, Stahlzargen | G11: nicht tragende Innenwände in massiver Ausführung bzw. mit Dämmmaterial gefüllte Ständerkonstruktionen; schwere Türen | I11: Sichtmauerwerk; Massivholztüren, Schiebetürelemente, Glastüren, strukturierte Türblätter | K11: gestaltete Wandabläufe (z. B. Pfeilervorlagen, abgesetzte oder geschwungene Wandpartien); Brandschutzverkleidung; raumhohe aufwendige Türelemente | N11: =IF(N12=TRUE,1,0) -> 0 | O11: =IF(O12=TRUE,1,0) -> 0 | P11: 1 | Q11: 0 | R11: 0
B12: 11% | C12: =ROUND($B12/$S12*N11,4) -> 0 | E12: =ROUND($B12/$S12*O11,4) -> 0 | G12: =ROUND($B12/$S12*P11,4) -> 0.11 | I12: =ROUND($B12/$S12*Q11,4) -> 0 | K12: =ROUND($B12/$S12*R11,4) -> 0 | N12: FALSE | O12: FALSE | P12: TRUE | Q12: FALSE | R12: FALSE | S12: =COUNTIF(N12:R12,TRUE) -> 1
B13: Deckenkon- struktion | C13: Holzbalkendecken ohne Füllung, Spalierputz; Weichholztreppen in einfacher Art und Ausführung; kein Trittschallschutz | E13: Holzbalkendecken mit Füllung, Kappendecken; Stahl- oder Hartholztreppen in einfacher Art und Ausführung | G13: Beton- und Holzbalkendecken mit Tritt- und Luftschallschutz (z. B. schwimmender Estrich); geradläufige Treppen aus Stahlbeton oder Stahl, Harfentreppe, Trittschallschutz | I13: Decken mit größerer Spannweite, Deckenverkleidung (Holzpaneele/Kasseten); gewendelte Treppen aus Stahlbeton oder Stahl, Hartholztreppenanlage in besserer Art und Ausführung | K13: Decken mit großen Spannweiten, Deckenvertäfelungen (Edelholz, Metall); breite Stahlbeton-, Metall- oder Holztreppenanlage mit hochwertigem Geländer | N13: =IF(N14=TRUE,1,0) -> 0 | O13: =IF(O14=TRUE,1,0) -> 0 | P13: 1 | Q13: 0 | R13: 0
B14: 11% | C14: =ROUND($B14/$S14*N13,4) -> 0 | E14: =ROUND($B14/$S14*O13,4) -> 0 | G14: =ROUND($B14/$S14*P13,4) -> 0.11 | I14: =ROUND($B14/$S14*Q13,4) -> 0 | K14: =ROUND($B14/$S14*R13,4) -> 0 | N14: FALSE | O14: FALSE | P14: TRUE | Q14: FALSE | R14: FALSE | S14: =COUNTIF(N14:R14,TRUE) -> 1
B15: Fußböden | C15: ohne Belag | E15: Linoleum-, Teppich-, Laminat- und PVC-Böden einfacher Art und Ausführung | G15: Linoleum-, Teppich-, Laminat- und PVC-Böden besserer Art und Ausführung, Fliesen, Kunststeinplatten | I15: Natursteinplatten, Fertigparkett, hochwertige Fliesen, Terrazzobelag, hochwertige Massivholzböden auf aufgedämmter Unterkonstruktion | K15: hochwertiges Parkett, hochwertige Natursteinplatten, hochwertige Edelholzböden auf gedämmter Unterkonstruktion | N15: =IF(N16=TRUE,1,0) -> 0 | O15: =IF(O16=TRUE,1,0) -> 0 | P15: 1 | Q15: 0 | R15: 0
B16: 5% | C16: =ROUND($B16/$S16*N15,4) -> 0 | E16: =ROUND($B16/$S16*O15,4) -> 0 | G16: =ROUND($B16/$S16*P15,4) -> 0.05 | I16: =ROUND($B16/$S16*Q15,4) -> 0 | K16: =ROUND($B16/$S16*R15,4) -> 0 | N16: FALSE | O16: FALSE | P16: TRUE | Q16: FALSE | R16: FALSE | S16: =COUNTIF(N16:R16,TRUE) -> 1
B17: Sanitärein- richtungen | C17: einfaches Bad mit Stand-WC; Installation auf Putz, Ölfarbenanstrich, einfache PVC-Bodenbeläge | E17: 1 Bad mit WC, Dusche oder Badewanne; einfache Wand- und Bodenfliesen, teilweise gefliest | G17: 1 Bad mit WC je Wohneinheit; Dusche und Badewanne; Wand- und Bodenfliesen, raumhoch gefliest | I17: 1 – 2 Bäder je Wohneinheit mit tlw. zwei Waschbecken, tlw. Bidet/ Urinal, Gäste-WC, bodengleiche Dusche; Wand- und Bodenfliesen jeweils in gehobener Qualität | K17: 2 und mehr Bäder je Wohneinheit; hochwertige Wand- und Bodenplatten (oberflächenstrukturiert, Einzel- und Flächendekors) | N17: =IF(N18=TRUE,1,0) -> 0 | O17: =IF(O18=TRUE,1,0) -> 0 | P17: 1 | Q17: 0 | R17: 0
B18: 9% | C18: =ROUND($B18/$S18*N17,4) -> 0 | E18: =ROUND($B18/$S18*O17,4) -> 0 | G18: =ROUND($B18/$S18*P17,4) -> 0.09 | I18: =ROUND($B18/$S18*Q17,4) -> 0 | K18: =ROUND($B18/$S18*R17,4) -> 0 | N18: FALSE | O18: FALSE | P18: TRUE | Q18: FALSE | R18: FALSE | S18: =COUNTIF(N18:R18,TRUE) -> 1
B19: Heizung | C19: Einzelöfen, Schwerkraftheizung | E19: Fern- oder Zentralheizung, einfache Warmluftheizung, einzelne Gasaußen-wandthermen, Nachtstromspeicher-, Fußbodenheizung (vor ca. 1995) | G19: elektronisch gesteuerte Fern- oder Zentralheizung, Niedertemperatur- oder Brennwertkessel | I19: Fußbodenheizung, Solarkollektoren für Warmwassererzeugung | K19: Solarkollektoren für Warmwassererzeugung und Heizung, Blockheizkraftwerk, Wärmepumpe, Hybrid-Systeme | N19: =IF(N20=TRUE,1,0) -> 0 | O19: =IF(O20=TRUE,1,0) -> 0 | P19: 1 | Q19: 0 | R19: 0
B20: 9% | C20: =ROUND($B20/$S20*N19,4) -> 0 | E20: =ROUND($B20/$S20*O19,4) -> 0 | G20: =ROUND($B20/$S20*P19,4) -> 0.09 | I20: =ROUND($B20/$S20*Q19,4) -> 0 | K20: =ROUND($B20/$S20*R19,4) -> 0 | N20: FALSE | O20: FALSE | P20: TRUE | Q20: FALSE | R20: FALSE | S20: =COUNTIF(N20:R20,TRUE) -> 1
B21: Sonstige technische Ausstattung | C21: sehr wenige Steckdosen, Schalter und Sicherungen, kein Fehlerstromschutzschalter (FI-Schalter), Leitungen teilweise auf Putz | E21: wenige Steckdosen, Schalter und Sicherungen | G21: zeitgemäße Anzahl an Steckdosen und Lichtauslässen; Zählerschrank (ab ca. 1985) mit Unterverteilung und Kippsicherungen | I21: zahlreiche Steckdosen und Lichtaus- lässe, hochwertige Abdeckungen, de-zentrale Lüftung mit Wärme- tauscher, mehrere LAN- und Fernseh-anschlüsse, Personenaufzugsanlagen | K21: Video- und zentrale Alarmanlage, zentrale Lüftung mit Wärmetauscher, Klimaanlage, Bussystem; aufwendige Personenaufzugsanlagen | N21: =IF(N22=TRUE,1,0) -> 0 | O21: =IF(O22=TRUE,1,0) -> 0 | P21: 1 | Q21: 0 | R21: 0
B22: 6% | C22: =ROUND($B22/$S22*N21,4) -> 0 | E22: =ROUND($B22/$S22*O21,4) -> 0 | G22: =ROUND($B22/$S22*P21,4) -> 0.06 | I22: =ROUND($B22/$S22*Q21,4) -> 0 | K22: =ROUND($B22/$S22*R21,4) -> 0 | N22: FALSE | O22: FALSE | P22: TRUE | Q22: FALSE | R22: FALSE | S22: =COUNTIF(N22:R22,TRUE) -> 1
B23: Summe | C23: =SUM(C6:C22) -> 0 | E23: =SUM(E6:E22) -> 0 | G23: =SUM(G6:G22) -> 1 | I23: =SUM(I6:I22) -> 0 | K23: =SUM(K6:K22) -> 0
B24: GND [Jahre] | C24: 80 | E24: 80 | G24: 80 | I24: 80 | K24: 80
G25: Standardstufe (gewogen): | I25: =(1*C23+2*E23+3*G23+4*I23+5*K23) -> 3

Sheet RND
A1: Modell zur Ermittlung der Restnutzungsdauer für Wohngebäude bei Modernisierungen (Anlage 2 ImmoWertV)
A3: Modernisierungselemente | F3: max. Punkte | I3: tats. Punkte | J3: Kommentar
A4: Dacherneuerung inklusive Verbesserung der Wärmedämmung | F4: 4 | K4: 60 | L4: 1
A5: Modernisierung der Fenster und Außentüren | F5: =IF(I5>3,"TILT max. 2 ",2) -> 2 | K5: 65 | L5: 2
A6: Modernisierung der Leitungssysteme (Strom, Gas, Wasser, Abwasser) | F6: =IF(I6>3,"TILT max. 2 ",2) -> 2 | K6: 70 | L6: 3
A7: Modernisierung der Heizungsanlage | F7: =IF(I7>3,"TILT max. 2 ",2) -> 2 | K7: 75 | L7: 4
A8: Wärmedämmung der Außenwände | F8: 4 | K8: 80
A9: Modernisierung von Bädern | F9: =IF(I9>3,"TILT max. 2 ",2) -> 2 | K9: 90
A10: Modernisierung des Innenausbaus, z.B. Decken, Fußböden, Treppen | F10: 2 | L10: =IF(AND(#REF!<>"",I12=0),"Einblenden","Ausblenden") -> 
A11: Wesentliche Verbesserung der Grundrissgestaltung | F11: 2
A12: Summe | F12: =SUM(F4:F11) -> 20 | I12: =SUM(I4:I11) -> 0 | L12: =IF(I12>0,#REF!=0) -> FALSE
A14: Liegen die Maßnahmen weiter zurück, ist zu prüfen, ob nicht ein geringerer als der maximale Tabellenwert anzusetzen ist. Sofern nicht modernisierte Bauelemente noch zeitgemäßen Ansprüchen genügen, sind entsprechende Punkte zu vergeben.
A18: Modernisierungsgrad | F18: Punkte | L18: Modernisierungsgrad | M18: a | N18: b | O18: c | P18: ab einem relativen Alter [%] von *) | R18: Formel anwendbar
A19: nicht modernisiert | F19: 0 | G19: - | H19: 1 | I19: =IF(AND(I12<>"",F19<=I12,H19>=I12,I12<1),I12,IF((F19<=I12)*OR(H19>=I12),I12,0)) -> 0 | L19: ≤ 1 Punkt | M19: 0.0125 | N19: 2.625 | O19: 152.5 | P19: 60 | Q19: 24 | R19: =IF(AND(I12<2,L28>(P19-1)),1,0) -> 1
A20: kleine Modernisierung im Rahmen der Instandhaltung | F20: 2 | G20: - | H20: 5 | I20: =IF(AND(I12<>"",F20<=I12,H20>=I12,I12<1),I12,IF(AND(J23<>"",F20<=J23,H20>=J23),J23,IF((F20<=I12)*OR(H20>=I12),I12,0))) -> 0 | L20: 4 Punkte | M20: 0.0073 | N20: 1.577 | O20: 111.33 | P20: 40 | Q20: 0 | R20: =IF(AND(I20<>0,L28>(P20-1)),1,0) -> 0
A21: mittlerer Modernisierungsgrad | F21: 6 | G21: - | H21: 10 | I21: =IF(AND(I12<>"",F21<=I12,H21>=I12,I12<1),I12,IF((F21<=I12)*OR(H21>=I12),I12,0)) -> 0 | L21: 8 Punkte | M21: 0.005 | N21: 1.1 | O21: 100 | P21: 20 | Q21: 0 | R21: =IF(AND(I21<>0,L28>(P21-1)),1,0) -> 0
A22: überwiegend modernisiert | F22: 11 | G22: - | H22: 17 | I22: =IF(AND(I12<>"",F22<=I12,H22>=I12<1),,IF((F22<=I12)*OR(H22>=I12),I12,0)) -> 0 | L22: 13 Punkte | M22: 0.0033 | N22: 0.735 | O22: 95.28 | P22: 15 | Q22: 0 | R22: =IF(AND(I22<>0,L28>(P22-1)),1,0) -> 0
A23: umfassend modernisiert | F23: 18 | G23: - | H23: 20 | I23: =IF(AND(I12<>"",F23<=I12,H23>=I12,I12<1),I12,IF((F23<=I12)*OR(H23>=I12),I12,0)) -> 0 | L23: ≥ 18 Punkte | M23: 0.002 | N23: 0.44 | O23: 94.2 | P23: 10 | Q23: 0 | R23: =IF(AND(I23<>0,L28>(P23-1)),1,0) -> 0
P24: Summe | Q24: =SUM(Q19:Q23) -> 24 | R24: =SUM(R19:R23) -> 1
A25: Ermittlung der Restnutzungsdauer und des rechnerischen Baujahres | L25: Maximales tatsächliches Gebäudealter unter Berücksichtigung der gewählten Gesamtnutzungsdauer:
A26: Vorgaben | B26: Stichtag | E26: nur das Jahr ! | F26: =YEAR(EingabeMaske!D16) -> 2023 | L26: 36
B27: Baujahr | F27: =EingabeMaske!D23 -> 1995 | L27: Berechnung des relativen Gebäudealters (Alter/GNDx100):
B28: tatsächliches Alter | F28: =F26-F27 -> 28 | I28: Jahre | L28: 60 | M28: %
B29: Bestimmung der Restnutzungsdauer nach ImmoWertV
B30: Gesamtnutzungsdauer | F30: =EingabeMaske!D24 -> 80 | I30: Jahre
B31: Restnutzungsdauer nach ImmoWertV | F31: ='RND ImmoWertV'!B15 -> 52 | I31: Jahre
B32: lineare Alterswertminderung | F32: =ROUND((F30-F31)/F30*100,0) -> 35 | I32: %
B33: fiktives Baujahr | F33: =F26-(F30-F31) -> 1995
B34: Die Ermittlung des fiktiven Baujahrs wurde durchgeführt | E34: FALSE | F34: =IF(E34=TRUE,"ja","nein") -> nein

Sheet RND ImmoWertV (hidden)
A2: Restnutzungsdauer bei Modernisierung nach ImmoWertV
J3: a | K3: 1.25 | L3: 1.25 | M3: 1.0767 | N3: 0.9033 | O3: 0.73 | P3: 0.6725 | Q3: 0.615 | R3: 0.5575 | S3: 0.5 | T3: 0.466 | U3: 0.432 | V3: 0.398 | W3: 0.364 | X3: 0.33 | Y3: 0.304 | Z3: 0.278 | AA3: 0.252 | AB3: 0.226 | AC3: 0.2 | AD3: 0.2 | AE3: 0.2
J4: b | K4: 2.625 | L4: 2.625 | M4: 2.2757 | N4: 1.9263 | O4: 1.577 | P4: 1.4578 | Q4: 1.3385 | R4: 1.2193 | S4: 1.1 | T4: 1.027 | U4: 0.954 | V4: 0.881 | W4: 0.808 | X4: 0.735 | Y4: 0.676 | Z4: 0.617 | AA4: 0.558 | AB4: 0.499 | AC4: 0.44 | AD4: 0.44 | AE4: 0.44
J5: c | K5: 1.525 | L5: 1.525 | M5: 1.3878 | N5: 1.2505 | O5: 1.1133 | P5: 1.085 | Q5: 1.0567 | R5: 1.0283 | S5: 1 | T5: 0.9906 | U5: 0.9811 | V5: 0.9717 | W5: 0.9622 | X5: 0.9528 | Y5: 0.9506 | Z5: 0.9485 | AA5: 0.9463 | AB5: 0.9442 | AC5: 0.942 | AD5: 0.942 | AE5: 0.942
J6: ab rel. Alter | K6: 60 | L6: 60 | M6: 55 | N6: 55 | O6: 40 | P6: 35 | Q6: 30 | R6: 25 | S6: 20 | T6: 19 | U6: 18 | V6: 17 | W6: 16 | X6: 15 | Y6: 14 | Z6: 13 | AA6: 12 | AB6: 11 | AC6: 10 | AD6: 10 | AE6: 10
B8: Ergebnis | H8: Vorgaben
B9: RND | C9: Pkte | D9: abger. Pkte | E9: RND | F9: aufger. Pkte | G9: RND | H9: GND | I9: Alter | J9: rel. Alter [%] | K9: 0 | L9: =K9+1 -> 1 | M9: =L9+1 -> 2 | N9: 3 | O9: 4 | P9: 5 | Q9: 6 | R9: 7 | S9: 8 | T9: 9 | U9: 10 | V9: 11 | W9: 12 | X9: 13 | Y9: 14 | Z9: 15 | AA9: 16 | AB9: 17 | AC9: 18 | AD9: 19 | AE9: 20
A10: 1 | B10: =ROUND(E10+(C10-D10)*(G10-E10),0) -> 52 | C10: =RND!I12 -> 0 | D10: =ROUNDDOWN(C10,0) -> 0 | E10: =IF($J10=0,0,HLOOKUP(D10,$K$9:$AE$10,$A10+1,0)) -> 52 | F10: =ROUNDUP(C10,0) -> 0 | G10: =IF($J10=0,0,HLOOKUP(F10,$K$9:$AE$10,$A10+1,0)) -> 52 | H10: =RND!F30 -> 80 | I10: =RND!F28 -> 28 | J10: =IF(H10=0,0,I10/H10*100) -> 35 | K10: =ROUND(IF(($J10>=K$6)*($H10>=$I10),K$3*$I10^2/$H10-K$4*$I10+K$5*$H10,IF(($J10>=K$6)*($H10<$I10),K$3*$H10^2/$H10-K$4*$H10+K$5*$H10,$H10-$I10)),2) -> 52 | L10: =ROUND(IF(($J10>=L$6)*($H10>=$I10),L$3*$I10^2/$H10-L$4*$I10+L$5*$H10,IF(($J10>=L$6)*($H10<$I10),L$3*$H10^2/$H10-L$4*$H10+L$5*$H10,$H10-$I10)),2) -> 52 | M10: 52 | N10: 52 | O10: 52 | P10: 52.57 | Q10: 53.09 | R10: 53.59 | S10: 54.1 | T10: 55.06 | U10: 56.01 | V10: 56.97 | W10: 57.92 | X10: 58.88 | Y10: 60.1 | Z10: 61.33 | AA10: 62.55 | AB10: 63.78 | AC10: 65 | AD10: 65 | AE10: 65
B12: Mindestrestnutzungsdauer:
B13: =30%*H10 -> 24
B14: maßgeblich:
B15: =IF(B13>B10,B13,B10) -> 52 | C15: Jahre

Sheet Werte (hidden)
A1: Garage
A2: Doppelgarage
A3: Carport
A4: Carport und Garage
A5: Sonstiges (freie Eingabe)
A8: freistehend / DHH / REH
A9: Reihenmittelhaus

Sheet Werte 2 (hidden)
A1: Bewertungsgrundstück | B1: WO gesamt | C1: WO | D1: BRW | E1: UK WO | F1: UK RW | K1: Restfläche
A2: Fall 1: Eine Aufteilung in selbstständig verwertbare und baulich nutzbare Teilflächen ist möglich. Die Teilfläche des bebauten Grundstücksteils (überbaute Fläche zzgl. Umgriffsfläche) beträgt: | B2: =EingabeMaske!D19 -> 500 | C2: =EingabeMaske!D20 -> 0 | D2: =EingabeMaske!D27 -> 500 | E2: =IF(C2*D2>0,1.7*C2^(-0.0855),"") ->  | F2: =IF(C2*D2>0,1.7*D2^(-0.0855),"") ->  | G2: =IF(C2*D2>0,E2/F2,1) -> 1 | H2: =B2-C2 -> 500 | I2: selbstständig verwertbare Teilfläche | J2: Anpassung an die Grundstücksgröße | K2: =IF(C2=0,0,B2-C2) -> 0 | L2: =IF(C2*D2>0,1.7*K2^(-0.0855),"") ->  | M2: =IF(C2*D2>0,L2/F2,1) -> 1 | N2: =IF(EingabeMaske!D20=0,"Angabe der Fläche erforderlich","") -> Angabe der Fläche erforderlich
A3: Fall 2: Die mittlere Grundstückstiefe liegt über 40 m. Eine Aufteilung in selbstständig verwertbare und baulich nutzbare Teilflächen ist nicht möglich. Die Fläche bis zu 40 m Tiefe (Vorderland) beträgt: | B3: =EingabeMaske!D19 -> 500 | C3: =EingabeMaske!D20 -> 0 | D3: =EingabeMaske!D27 -> 500 | E3: =IF(C3*D3>0,1.7*C3^(-0.0855),"") ->  | F3: =IF(C3*D3>0,1.7*D3^(-0.0855),"") ->  | G3: =IF(C3*D3>0,E3/F3,1) -> 1 | H3: =B3-C3 -> 500 | I3: Hinterlandfläche | J3: Wertfaktor für Hinterland | K3: =IF(C3=0,0,B3-C3) -> 0 | L3: =IF(C3*D3>0,1.7*K3^(-0.0855),"") ->  | M3: 0.25 | N3: =IF(EingabeMaske!D20=0,"Angabe der Fläche erforderlich","") -> Angabe der Fläche erforderlich
A4: Fall 3: Eine Aufteilung in selbstständig verwertbare und baulich nutzbare Teilflächen ist nicht möglich. Die mittlere Tiefe des Grundstücks liegt unter 40 m. Eintrag auf 0 setzen. | B4: =EingabeMaske!D19 -> 500 | C4: 0 | D4: =EingabeMaske!D27 -> 500 | E4: =IF(D4>0,1.7*B4^(-0.0855),"") -> 0.9992795183 | F4: =IF(D4>0,1.7*D4^(-0.0855),"") -> 0.9992795183 | G4: =IF(D4>0,E4/F4,1) -> 1 | H4: =0 -> 0 | K4: 0 | N4: =IF(EingabeMaske!D20>0,"Eintag auf 0 m² setzen","") -> 
